Cogmind - Beta 10.2 @@@ ROGUE MODE // 2021.04.29 @ 17:27:29 // Winter2019/RPGLIKE Player: Trantor Result: Destroyed by G-47 Trooper with Particle Gun Performance ------------- Evolutions (0) 0 Regions Visited (1) 200 Robots Destroyed (11) 55 Value Destroyed (335) 335 Prototype IDs (0) 0 Alien Tech Used (0) 0 Bonus (0) 0 TOTAL SCORE: 590 Bonus ------- None Cogmind --------- Core Integrity 0/600 Matter 249/300 Energy 125/125 System Corruption 0% Temperature Cool (9) Movement Walking (120) Location -10/Materials Parts ------- > --- POWER (1) -------- Light Ion Engine > --- PROPULSION (2) --- Aluminum Leg Aluminum Leg > --- UTILITY (2) ------ Heat Sink Signal Interpreter > --- WEAPON (2) ------- Assault Rifle Light Assault Rifle > --- INVENTORY (2) ---- Protomatter-30 Grenade Launcher Peak State ------------ > --- POWER ------------ Light Ion Engine > --- PROPULSION ------- Aluminum Leg Aluminum Leg > --- UTILITY ---------- Heat Sink Small Matter Pod > --- WEAPON ----------- Assault Rifle Light Assault Rifle > --- INVENTORY -------- Aluminum Leg Grenade Launcher [Rating: 7] Favorites ----------- Power Light Ion Engine Engine Light Ion Engine Propulsion Aluminum Leg Leg Aluminum Leg Utility Heat Sink Device Heat Sink Storage Small Matter Pod Processor Signal Interpreter Weapon Assault Rifle Ballistic Gun Assault Rifle Launcher Grenade Launcher Build | -11 -10 ------- Run | Scr Mat Slots Evolved 3 | . 3 Power . | . . Propulsion 1 | . 1 Utility 1 | . 1 Weapon 1 | . 1 Parts Attached 14 | 3 11 Power 1 | 1 . Engine 1 | 1 . Core . | . . Reactor . | . . Propulsion 5 | 1 4 Treads . | . . Leg 5 | 1 4 Wheel . | . . Hover . | . . Flight . | . . Utility 3 | . 3 Device 1 | . 1 Storage 1 | . 1 Processor 1 | . 1 Hackware . | . . Protection . | . . Artifact . | . . Weapon 5 | 1 4 Energy Gun . | . . Energy Cannon . | . . Ballistic Gun 3 | 1 2 Ballistic Cannon . | . . Launcher 2 | . 2 Special Weapon . | . . Impact Weapon . | . . Slashing Weapon . | . . Piercing Weapon . | . . Special Melee Weapon . | . . Unidentified Prototypes . | . . Parts Lost . | . . Power . | . . Propulsion . | . . Utility . | . . Weapon . | . . Highest Loss Streak . | . . Average Slot Usage (%) 88 | . 88 Engine 14 | . 14 Leg 24 | . 24 Device 9 | . 9 Storage 8 | . 8 Processor 3 | . 3 Ballistic Gun 24 | . 24 Launcher 1 | . 1 Naked Turns . | . . Heaviest Build 9 | 5 9 Greatest Support 20 | 10 20 Greatest Overweight (x) . | . . Average Overweight (x) . | . . Largest Inventory Capacity 2 | . 2 Average Capacity 1 | . 1 Most Carried 2 | . 2 Average Carried 1 | . 1 Final Capacity 2 | . 2 Final Carried 2 | . 2 Class Distribution -------------------- 62% | Mutant 37% | Scavenger-Mutant Dominant Class ---------------- Mutant | -10/Materials Resources | -11 -10 ----------- Run | Scr Mat Matter Collected 493 | 221 272 Remotely . | . . Salvage Created 316 | . 316 Parts 24 | . 24 Haulers Intercepted . | . . Recyclers Shooed . | . . Parts Field Recycled . | . . Retrieved Matter . | . . Parts Self-Destructed . | . . Prevented . | . . Kills | -11 -10 ------- Run | Scr Mat Combat Hostiles Destroyed 11 | . 11 Guns 8 | . 8 AOE 3 | . 3 Classes Destroyed 2 | . 2 Swarmer 3 | . 3 Grunt 8 | . 8 Best Kill Streak 4 | . 4 Combat Bots Only 4 | . 4 Max Kills in Single Turn 2 | . 2 Gunslinging . | . . Exploded 2 | . 2 Melee . | . . Uniques/NPCs Destroyed . | . . Combat | -11 -10 -------- Run | Scr Mat Damage Taken 762 | . 762 Core 609 | . 609 Absorbed by Shields . | . . Redirected to Core 497 | . 497 Core Remaining (%) 100 | 100 . Volleys Fired 57 | . 57 Largest 2 | . 2 Hottest 50 | . 50 Shots Fired 93 | . 93 Gun 89 | . 89 Cannon . | . . Launcher 4 | . 4 Special . | . . Kinetic 89 | . 89 Thermal . | . . Explosive 4 | . 4 Electromagnetic . | . . Robot Hit Streak 8 | . 8 Robot Miss Streak 4 | . 4 Penetration Max . | . . Secondary Targets 3 | . 3 Max Gunslinging Chain 1 | . 1 Shots Hit Robots 50 | . 50 Core Hits 25 | . 25 Critical Hits 2 | . 2 Critical Kills 2 | . 2 Critical Parts Destroyed . | . . Melee Attacks . | . . Impact . | . . Slashing . | . . Piercing . | . . Sneak Attacks . | . . Combat Hostiles . | . . Follow-up Attacks . | . . Damage Inflicted 832 | . 832 Guns 518 | . 518 Cannons . | . . Explosions 314 | . 314 Melee . | . . Ramming . | . . Kinetic 518 | . 518 Thermal . | . . Explosive 314 | . 314 Electromagnetic . | . . Impact . | . . Slashing . | . . Piercing . | . . Highest Corruption . | . . Average Corruption . | . . Corruption Purged . | . . Overload Shots . | . . Overflow Damage 4 | . 4 Projectiles . | . . Explosions 4 | . 4 Melee . | . . Knockbacks . | . . Impact . | . . Kinetic . | . . Secondary . | . . Self-Inflicted Damage . | . . Shots . | . . Rammed . | . . Targets Rammed . | . . Kicked . | . . Crushed . | . . Highest Temperature 18 | . 18 Average Temperature 8 | . 8 Received Heat Transfer 453 | . 453 Siege Activations . | . . Robots Corrupted . | . . Combat Hostiles . | . . Parts Fried . | . . Impact Corruptions . | . . Robots Melted . | . . Combat Hostiles . | . . Parts Melted . | . . Heat Transferred . | . . Parts Sabotaged . | . . Parts Stolen . | . . Parts Stripped . | . . Power Chain Reactions . | . . Missiles Intercepted . | . . Alert | -11 -10 ------- Run | Scr Mat Peak Influence 290 | . 290 Initial . | . . Average 169 | . 193 Maximum Alert Level 1 | . 1 Low Security (%) 56 | 100 50 Level 1 43 | . 49 Level 2 . | . . Level 3 . | . . Level 4 . | . . Level 5 . | . . High Security . | . . Max Security . | . . Squads Dispatched 4 | . 4 Investigation 1 | . 1 Extermination . | . . Reinforcement 3 | . 3 Assault . | . . Garrison . | . . Intercept . | . . Construction Impeded . | . . Haulers Reinforced . | . . Stealth | -11 -10 --------- Run | Scr Mat Distress Signals . | . . Communications Jammed . | . . Distress Signals . | . . Times Spotted 18 | . 18 Peak Tracking Total 4 | . 4 Tactical Retreats . | . . Traps | -11 -10 ------- Run | Scr Mat Traps Triggered . | . . Indirectly . | . . Trap Hack Attempts . | . . Triggered . | . . Disarmed . | . . Reprogrammed . | . . Reused . | . . Traps Extracted . | . . Installed . | . . Triggered . | . . Machines | -11 -10 ---------- Run | Scr Mat Machines Disabled 2 | . 2 Max in Single Turn 1 | . 1 Machines Sabotaged . | . . Garrisons Compromised . | . . Overloaded Fab Kills . | . . Fab Network Shutdowns . | . . Hacking | -11 -10 --------- Run | Scr Mat Machines Accessed 1 | . 1 Terminals 1 | . 1 Fabricators . | . . Repair Stations . | . . Recycling Units . | . . Scanalyzers . | . . Garrison Access . | . . Total Hacks 3 | . 3 Successful 3 | . 3 Failed . | . . Catastrophic . | . . Database Lockouts . | . . Manual . | . . Terminals 3 | . 3 Fabricators . | . . Repair Stations . | . . Recycling Units . | . . Scanalyzers . | . . Garrison Access . | . . Terminal Hacks 3 | . 3 Record 3 | . 3 Fabricator Hacks . | . . Repair Station Hacks . | . . Recycling Unit Hacks . | . . Scanalyzer . | . . Garrison Access Hacks . | . . Unauthorized Hacks . | . . Terminals . | . . Fabricators . | . . Repair Stations . | . . Recycling Units . | . . Scanalyzers . | . . Garrison Access . | . . Data Cores Recovered . | . . Used . | . . Hacking Detections 1 | . 1 Full Trace Events 1 | . 1 Feedback Events . | . . Feedback Blocked . | . . Robot Schematics Acquired . | . . Robots Built . | . . Matter . | . . Time . | . . Total Robot Build Rating . | . . Part Schematics Acquired . | . . Parts Built . | . . Matter . | . . Time . | . . Total Part Build Rating . | . . Parts Repaired . | . . Time . | . . Parts Recycled . | . . Recycled Matter . | . . Retrieved Matter . | . . Retrieved Components . | . . Parts Scanalyzed . | . . Part Schematics Acquired . | . . Parts Damaged . | . . Bothacking | -11 -10 ------------ Run | Scr Mat Used RIF Installer . | . . Robots Hacked . | . . Non-combat . | . . Combat . | . . Robot Hacks Applied . | . . Relay Couplers Released . | . . Robots Rewired . | . . Allies Hacked . | . . Hacks Repelled . | . . Allies | -11 -10 -------- Run | Scr Mat Total Allies . | . . Largest Group . | . . Highest-Rated Group . | . . Highest-Rated Ally . | . . Total Orders . | . . Ally Attacks . | . . Total Damage . | . . Kills . | . . Allies Corrupted . | . . Allies Melted . | . . Intel | -11 -10 ------- Run | Scr Mat Robot Analysis Total . | . . Derelict Logs Recovered . | . . Drone Launches . | . . Drone Recoveries . | . . Exploration | -11 -10 ------------- Run | Scr Mat Turns Passed 501 | 62 439 Spaces Moved 294 | 62 232 Core 23 | 23 . Treads . | . . Legs 271 | 39 232 Wheels . | . . Hover . | . . Flight . | . . Fastest Speed 50 | 50 120 Average Speed 114 | 94 120 Slowest Speed 120 | 120 120 Overloaded Moves . | . . Propulsion Burnouts . | . . Robots Hopped . | . . Cave-ins Triggered . | . . Exploration Rate (%) 17 | 5 29 Regions Visited 1 Branch Regions . Pre-discovered Areas . | . . Known Exits Taken . | . . Unknown Exits Taken 1 | 1 . Scrap Searched . | . . Spaces Dug . | . . Terrain Destroyed 6 | . 6 Melee . | . . Projectile . | . . AOE 6 | . 6 Terrain Rammed . | . . Walls Destroyed . | . . Machines Disabled . | . . Actions | -11 -10 --------- Run | Scr Mat Total 375 | 64 311 Wait 1 | . 1 Move 293 | 61 232 Hop . | . . Pick Up 4 | . 4 Fast Attach 8 | 3 5 Attach 2 | . 2 Detach 1 | . 1 Swap 4 | . 4 Drop 5 | . 5 Fire 57 | . 57 Melee . | . . Ram . | . . Kick . | . . Crush . | . . Escape Stasis . | . . Rewire . | . . Trap . | . . Miscellaneous . | . . Route ------- -11/Scrapyard -10/Materials (discovered 1 exit: *Mat) History --------- Turn | Location | Event 8 | -11/Scrapyard | Discovered new exit (range 15) 63 | -11/Scrapyard | Entered Materials 73 | -10/Materials | Upgraded with Propulsion slot (x1) 73 | -10/Materials | Upgraded with Utility slot (x1) 73 | -10/Materials | Upgraded with Weapon slot (x1) 235 | -10/Materials | Core integrity fell below 50% 256 | -10/Materials | Core integrity fell below 20% 315 | -10/Materials | Build established: Mutant 331 | -10/Materials | Discovered new exit (range 16) 432 | -10/Materials | Identified exit to Materials 481 | -10/Materials | Reached level 2 502 | -10/Materials | Destroyed by G-47 Trooper with Particle Gun Last Messages --------------- M004. 00282_ U-05 Engineer lays Concrete. 00283_ Acquired 29 matter. 00283_ U-05 Engineer lays Concrete. 00293_ Dropped Aluminum Leg. 00294_ Acquired Assault Rifle. 00309_ G-34 Mercenary suffers critical hit. 00309_ G-34 Mercenary destroyed. 00309_ R-06 Scavenger collects Imp. Heat Sink. 00323_ Acquired 70 matter. 00325_ Dropped Aluminum Leg. 00331_ EXIT=FOUND 00401_ Dropped Sml. Matter Pod. 00405_ Acquired Signal Interpreter. 00409_ Extracted 3 matter. 00432_ EXIT=IDENTIFIED: MATERIALS 00481_ Reached level 2. 00481_ G-34 Mercenary destroyed. 00481_ Switching to secondary target: G-47 Trooper. 00483_ U-05 Engineer lays Concrete. Map ----- +----------------------------------------------------+ | ?# " " #????????????????????????????????????????? | | ?# #????????????????????????????????????????? | | ?# #????????????????????????????????????????? | | ?####+###########????????????????????????????????? | | ?# #????????????????????????????????? | | ?# #????????????????????????????##### | | ?# #????????????????????????##### | | ?############ #??????##########????????# # " | | ????????????# #??????# #????????# < # " | | ???????????## #??????# """ #????????# # " | | ???????????#T ###+#### "T" #????????# + | | ???????????## # #????????# # " | | ????????????# + ########## # " | | ????????????# # """ # # # " | | ????????????## "" # """ #""" # # | | ?????????????# """ # """ #""" # ##### | | ?????????????# "" # ! #""" # #???? | | ?????????????# "" #####+#### + #???? | | ?????????????# """ ##??# #??#""" # #???? | | ?????????????# ##### #??#""" # ##### | | ?????????????# #??#""" # # | | ?????????????# #??# # # """ | | ?????????????# #??########## # """ | | ?????????????# #???????????# # """ | | ????????+#####o ############# + | | ????? o! g @ # ] | | ????? =%* u # ! | | ????? = # ! | | ??????############################################ | | ?????????????????????????????????????????????????? | | ?????????????????????????????????????????????????? | | ?????????????????????????????????????????????????? | | ?????????????????????????????????????????????????? | | ?????????????????????????????????????????????????? | | ?????????????????????????????????????????????????? | | ?????????????????????????????????????????????????? | | ?????????????????????????????????????????????????? | | ?????????????????????????????????????????????????? | | ?????????????????????????????????????????????????? | | ?????????????????????????????????????????????????? | | ?????????????????????????????????????????????????? | | ?????????????????????????????????????????????????? | | ?????????????????????????????????????????????????? | | ?????????????????????????????????????????????????? | | ?????????????????????????????????????????????????? | | ?????????????????????????????????????????????????? | | ?????????????????????????????????????????????????? | | ?????????????????????????????????????????????????? | | ?????????????????????????????????????????????????? | | ?????????????????????????????????????????????????? | +----------------------------------------------------+ Best States ------------- Heat Dissipation 35 Energy Generation 10 Energy Capacity 125 Matter Stores 309 Matter Capacity 350 Sight Range 16 Terrain Scan Density 10 Resistance: KI 5 Resistance: TH 5 Resistance: EX 5 Evasion (%) 50 Item Schematics ----------------- None Robot Schematics ------------------ None Fabricated ------------ Nothing Alien Tech Used ----------------- None Achievements -------------- None Challenges ------------ None RPGLIKE | -11 -10 --------- Run | Scr Mat Levels Raised 1 | . 1 XP Earned 4550 | 3000 1550 XP Spent 2900 | . 2900 Upgrades 9 | . 9 Propulsion Slot 1 | . 1 Utility Slot 1 | . 1 Weapon Slot 1 | . 1 Inventory Capacity 2 | . 2 KI Resistance % 1 | . 1 TH Resistance % 1 | . 1 EX Resistance % 1 | . 1 KI Damage % 1 | . 1 Protomatter Created 65 | . 65 Protomatter Decayed 30 | . 30 Game ------ Seed MeleeActuatorScrap Manual? 0 Play Time 00:10:02 Cumulative 52.7 hours Start 2021.04.29 @ 17:19:39 End 2021.04.29 @ 17:27:29 Sessions 1 Manual Loads 0 Difficulty Rogue Special Mode Winter2019/RPGLIKE Game No. 28 Rogue 13 Adventurer 15 Explorer 0 Win Type - Total 0 Types 0/0/0/0/0/0/0/0/0 Lore% 33 Gallery% 34 Achievement% 30 Wizard Run 0 Options --------- ASCII 0 Keyboard 1 Movement Vi Keybinds 1 Fullscreen 2 Font 18/SmallcapsGlow Map View 76x50 Tactical HUD 1 Map Filters NONE Filters NONE Steam 1 RUN: e7df79f2-c402-4fdb-9b0d-31a591f3b656